bitfinex/quotes_SOLUSD_20250522
["timestamp","ask_amount","ask_price","bid_price","bid_amount"]
[1747875723946,0.14216157,174.94,174.89,3.19540713]
[1747875724151,6.5554,174.95,174.89,3.19540713]
[1747875724446,0.14216157,174.94,174.89,3.19540713]
[1747875724824,5.71657234,174.93,174.89,3.19540713]
[1747875725023,5.71657234,174.93,174.86,5.71885925]
[1747875725225,5.71657234,174.93,174.84,26.0]
[1747875726263,5.71624556,174.94,174.84,31.71951498]
[1747875726763,12.27138726,174.95,174.85,3.19540713]
[1747875726960,51.5,174.94,174.87,26.0]
[1747875727131,51.5,174.94,174.89,26.0]
[1747875727335,51.5,174.94,174.9,18.64964886]
[1747875727558,51.5,174.94,174.89,26.0]
[1747875728071,213.82,174.98,174.93,26.0]
[1747875728363,253.8151184,174.98,174.94,3.19540713]
[1747875728751,248.1,174.98,174.94,3.19540713]
[1747875729268,213.82,174.98,174.94,29.19540713]
[1747875729555,213.82,174.98,174.95,3.19540713]
[1747875730728,213.82,174.98,174.95,8.91125297]
[1747875731231,213.82,174.98,174.95,3.19540713]
[1747875732057,213.82,174.98,174.97,20.88671301]
[1747875732634,85.76,174.99,174.97,20.88671301]
[1747875732635,51.48,174.99,174.97,20.88671301]
[1747875732831,51.48,174.99,174.98,20.88671301]
[1747875733158,51.48,174.99,174.98,41.77342602]
[1747875733346,34.28,175.02,174.98,44.96883315]
[1747875733662,34.28,175.02,175.01,20.88671301]
[1747875734455,39.99363272,175.02,175.01,20.88671301]
[1747875735950,34.28,175.02,175.01,20.88671301]
[1747875737149,34.28,175.03,175.01,20.88671301]
[1747875737470,34.28,175.03,174.96,1.5189]
[1747875737773,34.28,175.03,175.02,20.88671301]
[1747875738440,39.99330629,175.03,175.02,20.88671301]
[1747875738640,39.99330629,175.03,175.01,20.88671301]
[1747875739142,39.99330629,175.03,175.02,20.88671301]
[1747875740347,39.99330629,175.03,174.92,1.616]
[1747875740558,39.99330629,175.03,174.9,20.88671301]
[1747875740559,0.14216157,175.0,174.9,20.88671301]
[1747875740763,84.66,174.99,174.9,20.88671301]
[1747875740970,84.66,174.99,174.98,20.88671301]
[1747875741562,5.71330629,175.03,174.98,20.88671301]
[1747875741745,34.28,175.02,174.93,26.0]
[1747875741944,5.71330629,175.03,175.01,20.88671301]
[1747875742148,34.28,175.02,175.01,20.88671301]
[1747875742555,56.6643,175.04,175.01,20.88671301]
[1747875742767,56.6643,175.04,175.03,20.88671301]
[1747875742972,90.9443,175.04,175.03,20.88671301]
[1747875743271,96.65732734,175.04,175.02,20.88671301]
[1747875743443,0.14216157,175.03,175.0,20.88671301]
[1747875743644,0.14216157,175.03,174.97,20.88671301]
[1747875743645,0.14216157,175.01,174.97,20.88671301]
[1747875743868,0.14216157,175.0,174.96,20.88671301]
[1747875744050,6.5459,174.99,174.95,20.88671301]
[1747875744363,84.66,174.98,174.97,20.88671301]
[1747875744577,90.37493885,174.98,174.97,20.88671301]
[1747875744957,104.66228597,174.98,174.96,20.88671301]
[1747875745154,90.37493885,174.98,174.96,20.88671301]
[1747875745357,90.37493885,174.98,174.97,20.88671301]
[1747875745696,50.38,175.01,174.97,20.88671301]
[1747875745969,34.28,174.98,174.9,26.60419874]
[1747875746173,34.28,174.98,174.9,20.88671301]
[1747875746473,39.99503782,174.98,174.91,3.21514736]
[1747875747146,34.28,174.98,174.97,20.88671301]
[1747875747346,50.38,175.01,174.97,20.88671301]
[1747875747546,50.38,175.01,175.0,20.88671301]
[1747875747773,90.37402905,175.01,174.9,26.60424248]
[1747875747969,90.37402905,175.01,174.9,20.88671301]
[1747875748271,90.37402905,175.01,175.0,20.88671301]
[1747875749575,84.66,175.01,175.0,20.88671301]
[1747875750178,50.38,175.01,175.0,20.88671301]
[1747875750480,84.66,175.01,175.0,41.77342602]
[1747875750656,84.66,175.01,175.0,20.88671301]
[1747875751164,84.66,175.01,175.0,41.77342602]
[1747875751477,84.66,175.01,175.0,20.88671301]
[1747875751776,84.66,175.01,175.0,41.77342602]
[1747875753158,64.66016846,175.07,175.0,41.77342602]
[1747875753356,64.66016846,175.07,175.06,20.88671301]
[1747875753357,14.28016846,175.07,175.06,20.88671301]
[1747875753583,48.56016846,175.07,175.06,20.88671301]
[1747875753769,220.5206,175.09,175.06,20.88671301]
[1747875753977,220.5206,175.09,175.08,20.88671301]
[1747875754279,253.89134844,175.09,175.08,20.88671301]
[1747875754870,5.71134844,175.09,175.08,20.88671301]
[1747875755281,14.27253859,175.17,175.08,20.88671301]
[1747875755456,92.49246644,175.16,175.1,20.88671301]
[1747875755777,92.49246644,175.16,175.15,20.88671301]
[1747875755981,106.76513143,175.16,175.07,1.6503]
[1747875756189,0.14216157,175.15,175.03,27.6599]
[1747875756371,0.14216157,175.15,175.11,20.88671301]
[1747875756551,104.64173098,175.16,175.12,20.88671301]
[1747875756756,104.64173098,175.16,175.13,20.88671301]
[1747875757058,104.64173098,175.16,175.14,20.88671301]
[1747875757260,104.64173098,175.16,175.13,20.88671301]
[1747875757860,44.79181043,175.13,174.99,1.6178]
[1747875758073,6.0522,175.1,175.05,20.88671301]
[1747875758276,50.36,175.09,175.05,20.88671301]
[1747875758668,19.99086131,175.08,175.05,20.88671301]
[1747875758863,34.26,175.07,175.05,20.88671301]
[1747875759069,34.26,175.07,175.06,20.88671301]
[1747875759786,34.26,175.07,175.05,20.88671301]
[1747875760272,19.99086131,175.08,175.0,20.88671301]
[1747875760273,19.99086131,175.08,175.06,20.88671301]
[1747875760598,34.26,175.07,175.0,20.88671301]
[1747875760892,39.9723272,175.06,175.0,20.88671301]
[1747875761072,34.26,175.06,175.0,111.60094873]
[1747875761262,34.26,175.06,175.0,105.88671301]
[1747875761786,34.26,175.06,175.05,20.88671301]
[1747875762296,34.26,175.06,175.01,3.20207107]
[1747875762590,34.26,175.06,175.05,20.88671301]
[1747875763085,34.26,175.06,175.01,3.20207107]
[1747875763280,34.26,175.06,175.05,20.88671301]
[1747875764886,39.9723272,175.06,175.05,20.88671301]
[1747875769666,28.54532998,175.16,175.05,20.88671301]
[1747875769865,34.26,175.14,175.13,20.88671301]
[1747875771177,39.96971793,175.14,175.13,20.88671301]
[1747875772293,5.70971793,175.14,175.13,20.88671301]
[1747875772798,38.96971793,175.14,175.13,20.88671301]
[1747875773301,34.26,175.14,175.13,20.88671301]
[1747875773504,5.70874008,175.17,175.13,20.88671301]
[1747875773796,34.26,175.16,175.11,5.71065367]
[1747875773964,34.26,175.16,175.15,20.88671301]
[1747875774167,34.26,175.18,175.15,20.88671301]
[1747875774389,48.72,175.19,175.17,20.88671301]
[1747875774603,5.70711106,175.22,175.18,20.88671301]
[1747875774891,5.70711106,175.22,175.21,20.88671301]
[1747875775107,34.26,175.22,175.21,20.83011584]
[1747875776186,34.26,175.22,175.16,1.5144]
[1747875776386,27.25221584,175.2,175.15,20.83011584]
[1747875776583,69.53011584,175.19,175.11,1.617]
[1747875776785,34.26,175.18,175.15,20.83011584]
[1747875776984,34.26,175.18,175.11,1.617]
[1747875776985,34.26,175.18,175.17,20.83011584]
[1747875777294,39.9684142,175.18,175.17,20.83011584]
[1747875777510,34.26,175.18,175.17,20.83011584]
[1747875779131,39.9684142,175.18,175.13,26.0]
[1747875779404,39.9684142,175.18,175.17,20.83011584]
[1747875780388,39.9684142,175.18,175.11,27.617]
[1747875780589,39.9684142,175.18,175.17,20.83011584]
[1747875781623,5.70776255,175.2,175.17,20.83011584]
[1747875781804,34.24,175.19,175.13,31.70975664]
[1747875782004,34.24,175.19,175.18,20.83011584]
[1747875782317,14.2640658,175.27,175.19,1.5193]
[1747875782626,19.96954876,175.27,175.26,20.83011584]
[1747875782831,34.24,175.26,175.19,1.5193]
[1747875783125,5.70711106,175.22,175.18,20.83011584]
[1747875783314,40.7994,175.21,175.17,20.83011584]
[1747875783516,40.7994,175.21,175.19,20.83011584]
[1747875783688,40.7994,175.21,175.18,20.83011584]
[1747875784094,40.7994,175.21,175.19,20.83011584]
[1747875784313,6.5594,175.21,175.2,20.83011584]
[1747875784618,40.7994,175.21,175.18,20.83011584]
[1747875784815,40.7994,175.21,175.17,20.83011584]
[1747875785196,40.7994,175.21,175.16,20.83011584]
[1747875785197,40.80728478,175.2,175.16,20.83011584]
[1747875785394,19.97716894,175.2,175.16,20.83011584]
[1747875785795,39.64505044,175.19,175.12,1.5193]
[1747875786106,20.85324001,175.18,175.13,20.85324001]
[1747875786302,34.24,175.17,175.13,20.85324001]
[1747875786503,34.24,175.17,175.07,1.6132]
[1747875786504,34.24,175.17,175.14,20.85324001]
[1747875786700,34.24,175.18,175.16,20.85324001]
[1747875786902,34.24,175.19,175.17,20.85324001]
[1747875787113,34.24,175.19,175.18,20.85324001]
[1747875787616,34.24,175.2,175.18,20.85324001]
[1747875787821,34.24,175.2,175.16,1.6033]
[1747875787996,34.24,175.2,175.19,20.85324001]
[1747875789319,14.26653791,175.24,175.19,41.70648002]
[1747875789320,34.24,175.23,175.19,41.70648002]
[1747875789627,34.24,175.23,175.22,20.85324001]
[1747875791719,48.68,175.27,175.22,20.85324001]
[1747875791930,34.24,175.26,175.2,20.85324001]
[1747875792138,34.24,175.26,175.25,20.85324001]
[1747875792341,213.72,175.31,175.25,20.85324001]
[1747875792625,34.24,175.3,175.22,18.64964886]
[1747875792797,39.94464629,175.3,175.21,7.6087]
[1747875793602,5.70424837,175.31,175.29,20.85324001]
[1747875793817,82.92,175.32,175.3,20.85324001]
[1747875794023,82.92,175.32,175.31,20.85324001]
[1747875794814,88.62386739,175.32,175.31,20.85324001]
[1747875795016,82.92,175.32,175.31,20.85324001]
[1747875795219,48.68,175.32,175.31,20.85324001]
[1747875795441,20.99540158,175.4,175.31,20.85324001]
[1747875795442,34.22,175.37,175.31,20.85324001]
[1747875795735,34.22,175.38,175.36,20.85324001]
[1747875795946,34.22,175.38,175.37,20.85324001]
[1747875796308,12.19683126,175.43,175.37,20.85324001]
[1747875796510,5.70053126,175.43,175.42,20.85324001]
[1747875797942,5.70053126,175.43,175.41,20.85324001]
[1747875798263,5.70053126,175.43,175.42,20.85324001]
[1747875798610,39.92053126,175.43,175.42,20.85324001]
[1747875798934,54.17122954,175.43,175.42,20.85324001]
[1747875799502,54.17122954,175.43,175.34,26.0]
[1747875799725,54.17122954,175.43,175.41,20.85324001]
[1747875799928,54.17122954,175.43,175.34,26.0]
[1747875799929,5.70053126,175.43,175.42,20.85324001]
[1747875800237,39.92053126,175.43,175.42,20.85324001]
[1747875800409,39.92053126,175.43,175.35,26.0]
[1747875800613,54.17122954,175.43,175.41,20.85324001]
[1747875800805,39.92053126,175.43,175.42,20.85324001]
[1747875801004,5.70053126,175.43,175.35,31.70283239]
[1747875801210,5.70053126,175.43,175.42,20.85324001]
[1747875801725,34.2,175.47,175.42,20.85324001]
[1747875801927,34.2,175.47,175.4,20.85324001]
[1747875802127,34.2,175.47,175.46,20.85324001]
[1747875802647,39.89897988,175.47,175.46,20.85324001]
[1747875802946,54.14642958,175.47,175.44,20.85324001]
[1747875803150,54.14642958,175.47,175.45,20.85324001]
[1747875803311,39.89897988,175.47,175.46,20.85324001]
[1747875804818,39.89897988,175.47,175.44,20.85324001]
[1747875805017,54.14642958,175.47,175.44,20.85324001]
[1747875805215,54.14642958,175.47,175.39,1.6178]
[1747875805426,54.14642958,175.47,175.43,20.85324001]
[1747875805627,54.14642958,175.47,175.44,20.85324001]
[1747875806311,54.14642958,175.47,175.39,1.6178]
[1747875806716,74.99966959,175.47,175.39,1.6178]
[1747875806914,20.99540158,175.46,175.34,26.0]
[1747875807227,6.0147,175.43,175.39,20.85324001]
[1747875807531,55.05324001,175.42,175.32,1.5069]
[1747875807733,20.85324001,175.4,175.32,1.5069]
[1747875808029,20.99540158,175.41,175.36,20.85324001]
[1747875808208,0.14216157,175.41,175.36,20.85324001]
[1747875808413,34.2,175.42,175.37,20.85324001]
[1747875808721,19.95325237,175.41,175.37,20.85324001]
[1747875808929,34.2,175.4,175.32,1.5069]
[1747875809127,55.05324001,175.4,175.35,20.85324001]
[1747875809638,34.2,175.4,175.36,20.85324001]
[1747875810234,55.05324001,175.4,175.32,1.5069]
[1747875810445,55.05324001,175.4,175.35,20.85324001]
[1747875810818,19.95552767,175.39,175.32,1.5069]
[1747875811013,19.95552767,175.39,175.37,20.85324001]
[1747875811219,34.2,175.38,175.37,20.85324001]
[1747875811433,34.2,175.38,175.32,1.5069]
[1747875811632,34.2,175.38,175.37,20.85324001]
[1747875812235,34.2,175.38,175.32,1.5069]
[1747875812742,34.2,175.38,175.37,20.85324001]
[1747875812948,39.90190443,175.38,175.37,20.85324001]
[1747875813145,34.2,175.38,175.37,20.85324001]
[1747875813653,39.90190443,175.38,175.37,20.85324001]
[1747875813851,39.90190443,175.38,175.32,1.5069]
[1747875814151,39.90190443,175.38,175.37,20.85324001]
[1747875814354,34.2,175.38,175.37,20.85324001]
[1747875814527,34.2,175.39,175.37,20.85324001]
[1747875814726,5.70092925,175.41,175.38,20.85324001]
[1747875814727,34.2,175.41,175.38,20.85324001]
[1747875814939,39.901253,175.41,175.38,20.85324001]
[1747875815148,39.901253,175.41,175.33,31.7034396]
[1747875815329,62.52945268,175.45,175.4,20.85324001]
[1747875815648,34.2,175.44,175.4,20.85324001]
[1747875815953,5.69735642,175.52,175.43,26.0]
[1747875816450,268.6750347,175.56,175.43,26.0]
[1747875816451,34.2,175.54,175.44,24.69864886]
[1747875816628,34.2,175.54,175.53,20.85324001]
[1747875816827,55.0950347,175.56,175.53,20.85324001]
[1747875817138,6.8150347,175.56,175.55,20.85324001]
[1747875819235,34.2,175.59,175.55,20.85324001]
[1747875819433,34.2,175.59,175.58,20.85324001]
[1747875819622,19.92598917,175.65,175.58,20.85324001]
[1747875819822,34.18,175.64,175.62,20.85324001]
[1747875820054,34.18,175.63,175.62,20.85324001]
[1747875820650,19.92598917,175.65,175.62,20.85324001]
[1747875820955,39.87378807,175.63,175.62,20.85324001]
[1747875821137,0.14216157,175.62,175.51,1.5833]
[1747875821336,20.99540158,175.62,175.57,20.85324001]
[1747875821538,34.18,175.61,175.6,20.85324001]
[1747875821735,19.92825826,175.63,175.6,20.85324001]
[1747875821934,34.18,175.62,175.6,20.85324001]
[1747875822236,68.18825826,175.63,175.6,20.85324001]
[1747875822448,34.18,175.62,175.59,20.85324001]
[1747875822952,34.18,175.62,175.51,1.5833]
[1747875822953,20.85324001,175.6,175.51,1.5833]
[1747875823269,20.07268943,175.61,175.55,20.85324001]
[1747875823441,20.85324001,175.6,175.55,20.85324001]
[1747875823645,20.85324001,175.59,175.51,1.5833]
[1747875823835,20.35324001,175.58,175.54,20.85324001]
[1747875824036,26.0,175.6,175.52,20.85324001]
[1747875824037,55.03324001,175.57,175.52,20.85324001]
[1747875824252,34.18,175.57,175.53,20.85324001]
[1747875824453,82.44,175.57,175.54,20.85324001]
[1747875824962,5.69605832,175.56,175.54,20.85324001]
[1747875825166,5.69313976,175.65,175.56,1.625]
[1747875825372,5.69313976,175.65,175.64,20.85324001]
[1747875825655,5.69313976,175.65,175.56,1.625]
[1747875826344,5.69313976,175.65,175.63,20.85324001]
[1747875826659,5.69313976,175.65,175.56,1.625]
[1747875826834,5.69313976,175.65,175.62,20.85324001]
[1747875827252,5.69313976,175.65,175.56,1.625]
[1747875827651,48.26,175.64,175.61,20.85324001]
[1747875827833,48.26,175.64,175.56,1.625]
[1747875828035,69.11324001,175.64,175.59,20.85324001]
[1747875828292,5.69508514,175.59,175.54,20.85324001]
[1747875828470,34.18,175.58,175.51,1.6278]
[1747875828967,34.18,175.58,175.55,20.85324001]
[1747875829341,34.18,175.58,175.51,1.6278]
[1747875829342,34.18,175.58,175.56,20.85324001]
[1747875829552,34.18,175.58,175.57,20.85324001]
[1747875829755,34.18,175.58,175.56,20.85324001]
[1747875830134,5.69508514,175.59,175.57,20.85324001]
[1747875830337,39.85540949,175.58,175.57,20.85324001]
[1747875830534,39.85540949,175.58,175.56,20.85324001]
[1747875830740,39.85540949,175.58,175.51,1.6278]
[1747875830958,39.85540949,175.58,175.56,20.85324001]
[1747875831163,39.85540949,175.58,175.57,20.85324001]
[1747875831576,39.85540949,175.58,175.51,1.6278]
[1747875831777,39.85540949,175.58,175.56,20.85324001]
[1747875832372,39.85540949,175.58,175.55,20.85324001]
[1747875832373,54.09393323,175.58,175.55,20.85324001]
[1747875832576,48.48,175.57,175.55,20.85324001]
[1747875833075,48.48,175.57,175.56,20.85324001]
[1747875833743,34.16,175.57,175.56,20.85324001]
[1747875834143,5.69540949,175.58,175.56,20.85324001]
[1747875834366,34.16,175.57,175.51,1.6278]
[1747875834568,5.69605832,175.56,175.55,20.85324001]
[1747875834881,5.69605832,175.56,175.51,1.6278]
[1747875835369,19.93620413,175.56,175.46,1.6249]
[1747875835673,34.16,175.57,175.55,20.85324001]
[1747875835967,34.16,175.57,175.56,20.85324001]
[1747875836165,34.16,175.57,175.46,1.6249]
[1747875836366,34.16,175.57,175.56,20.85324001]
[1747875837665,39.85573389,175.57,175.48,5.69839014]
[1747875837872,39.85573389,175.57,175.56,20.85324001]
[1747875838469,54.09506862,175.57,175.46,1.6249]
[1747875838876,54.09506862,175.57,175.53,20.85324001]
[1747875839188,39.85573389,175.57,175.56,20.85324001]
[1747875839555,39.85573389,175.57,175.55,20.85324001]
[1747875839751,54.09506862,175.57,175.46,1.6249]
[1747875839985,54.09506862,175.57,175.53,20.85324001]
[1747875840185,54.09506862,175.57,175.5,20.85324001]
[1747875840549,54.09506862,175.57,175.46,7.32415279]
[1747875840550,54.09506862,175.57,175.54,20.85324001]
[1747875840750,54.09506862,175.57,175.53,20.85324001]
[1747875840981,54.09506862,175.57,175.54,20.85324001]
[1747875841276,54.09506862,175.57,175.53,20.85324001]
[1747875841493,5.69573389,175.57,175.56,20.85324001]
[1747875841653,39.85573389,175.57,175.56,20.85324001]
[1747875842865,54.09506862,175.57,175.46,1.6249]
[1747875843066,54.09506862,175.57,175.53,20.85324001]
[1747875843326,54.09506862,175.57,175.54,20.85324001]
[1747875843495,54.09506862,175.57,175.46,1.6249]
[1747875843893,74.94830863,175.57,175.52,20.85324001]
[1747875844058,54.09506862,175.57,175.53,20.85324001]
[1747875844257,20.85324001,175.56,175.46,1.6249]
[1747875844581,6.4859,175.52,175.41,1.6313]
[1747875844889,82.64,175.51,175.47,20.85324001]
[1747875845565,20.85324001,175.5,175.45,20.85324001]
[1747875845977,19.93166287,175.6,175.49,41.70648002]
[1747875846276,34.16,175.59,175.5,1.6407]
[1747875846469,34.16,175.59,175.5,22.49394001]
[1747875846669,5.69540949,175.58,175.56,20.85324001]
[1747875847402,5.69540949,175.58,175.5,22.49394001]
[1747875847576,5.69540949,175.58,175.56,20.85324001]
[1747875849477,5.69540949,175.58,175.5,22.49394001]
[1747875849708,5.69540949,175.58,175.5,1.6407]
[1747875849907,5.69540949,175.58,175.57,20.85324001]
[1747875850201,5.69540949,175.58,175.56,20.85324001]
[1747875850202,39.85540949,175.58,175.56,20.85324001]
[1747875850767,39.85540949,175.58,175.5,22.49394001]
[1747875850968,54.09393323,175.58,175.54,20.85324001]
[1747875851201,20.99540158,175.57,175.5,1.6407]
[1747875851410,20.85324001,175.55,175.49,20.85324001]
[1747875851579,69.33324001,175.54,175.49,20.85324001]
[1747875851776,34.16,175.53,175.49,20.85324001]
[1747875851988,20.85324001,175.55,175.46,1.625]
[1747875852192,103.49324001,175.54,175.49,20.85324001]
[1747875852409,20.85324001,175.52,175.47,20.85324001]
[1747875852606,108.64,175.54,175.48,20.85324001]
[1747875852813,5.69735642,175.52,175.48,20.85324001]
[1747875853595,19.93166287,175.6,175.51,20.85324001]
[1747875853799,48.48,175.57,175.55,20.85324001]
[1747875853986,48.48,175.57,175.54,20.85324001]
[1747875854175,48.48,175.57,175.53,20.85324001]
[1747875854722,5.69605832,175.56,175.54,20.85324001]
[1747875855025,19.93620413,175.56,175.53,20.85324001]
[1747875855531,19.93620413,175.56,175.52,20.85324001]
[1747875856334,40.78944414,175.56,175.51,20.85324001]
[1747875856628,40.78944414,175.56,175.46,1.625]
[1747875856917,40.78944414,175.56,175.51,20.85324001]
[1747875857117,19.93620413,175.56,175.52,20.85324001]
[1747875857709,19.93620413,175.56,175.46,1.625]
[1747875857930,20.85324001,175.54,175.48,20.85324001]
[1747875858141,34.16,175.53,175.49,20.85324001]
[1747875858286,55.01324001,175.53,175.46,1.625]
[1747875858489,20.85324001,175.47,175.41,1.5203]
[1747875858718,88.35930468,175.46,175.42,20.85324001]
[1747875858916,88.35930468,175.46,175.43,20.85324001]
[1747875859531,88.35930468,175.46,175.41,1.5203]
[1747875859532,5.69865511,175.48,175.41,1.5203]
[1747875859684,34.18,175.45,175.41,1.5203]
[1747875860698,5.6999544,175.44,175.41,20.85324001]
[1747875860902,5.6999544,175.44,175.37,1.5765]
[1747875861214,5.6999544,175.44,175.41,20.85324001]
[1747875861520,5.6999544,175.44,175.37,1.5765]
[1747875861699,5.6999544,175.44,175.42,20.85324001]
[1747875862226,5.6999544,175.44,175.43,20.85324001]
[1747875862527,26.0,175.49,175.43,20.85324001]
[1747875862731,82.78,175.48,175.45,20.85324001]
[1747875862902,103.63324001,175.48,175.37,1.5765]
[1747875863102,82.78,175.48,175.45,20.85324001]
[1747875863419,82.78,175.48,175.47,20.85324001]
[1747875864001,82.78,175.48,175.4,20.85324001]
[1747875864197,82.78,175.48,175.47,20.85324001]
[1747875864426,82.78,175.48,175.46,20.85324001]
[1747875864621,82.78,175.48,175.47,20.85324001]
[1747875864810,88.47865511,175.48,175.47,20.85324001]
[1747875865010,102.7252929,175.48,175.4,20.85324001]
[1747875865321,88.47865511,175.48,175.45,20.85324001]
[1747875865514,34.18,175.47,175.46,20.85324001]
[1747875865720,34.18,175.47,175.44,20.85324001]
[1747875866035,34.18,175.47,175.45,20.85324001]
[1747875866330,68.5652929,175.48,175.4,20.85324001]
[1747875866514,34.18,175.47,175.4,20.85324001]
[1747875866714,34.18,175.47,175.37,7.27871825]
[1747875866715,5.69930468,175.46,175.37,7.27871825]
[1747875866917,5.69930468,175.46,175.45,20.85324001]
[1747875867227,5.69930468,175.46,175.37,7.27871825]
[1747875867533,5.69930468,175.46,175.44,20.85324001]
[1747875867732,5.69930468,175.46,175.38,5.70158056]
[1747875868029,5.69930468,175.46,175.45,20.85324001]
[1747875868205,5.69930468,175.46,175.4,20.85324001]
[1747875869106,20.85324001,175.49,175.45,20.85324001]
[1747875869107,54.31861619,175.49,175.45,20.85324001]
[1747875869306,34.18,175.48,175.41,0.5]
[1747875869507,34.18,175.48,175.47,20.85324001]
[1747875870235,5.69897988,175.47,175.4,26.55438313]
[1747875870444,5.69897988,175.47,175.37,1.5765]
[1747875870608,34.18,175.48,175.46,20.85324001]
[1747875870609,39.87866288,175.48,175.46,20.85324001]
[1747875870808,39.87866288,175.48,175.47,20.85324001]
[1747875871228,34.18,175.48,175.47,20.85324001]
[1747875872122,5.69837289,175.49,175.47,20.85324001]
[1747875872328,48.62,175.5,175.48,20.85324001]
[1747875872630,34.18,175.53,175.49,20.85324001]
[1747875872831,34.18,175.54,175.52,20.85324001]
[1747875873023,34.18,175.54,175.53,20.85324001]
[1747875873922,68.55506862,175.57,175.53,20.85324001]
[1747875874234,39.87611851,175.56,175.51,1.6242]
[1747875874530,54.31579881,175.57,175.55,20.85324001]
[1747875874730,34.18,175.56,175.51,1.6242]
[1747875875823,34.18,175.56,175.55,20.85324001]
[1747875876015,39.87605832,175.56,175.55,20.85324001]
[1747875876708,34.18,175.56,175.55,20.85324001]
[1747875878712,28.45863561,175.7,175.55,20.85324001]
[1747875878911,5.69184358,175.69,175.56,1.6271]
[1747875879132,7.81055403,175.69,175.67,20.85324001]
[1747875879340,7.81055403,175.69,175.6,20.85324001]
[1747875879341,34.18,175.68,175.6,20.85324001]
[1747875879640,34.18,175.68,175.67,20.85324001]
[1747875880221,34.18,175.71,175.65,1.5941]
[1747875880408,34.18,175.71,175.69,20.85324001]
[1747875880618,34.18,175.71,175.65,1.5941]
[1747875881335,48.62,175.73,175.7,20.85324001]
[1747875881541,48.62,175.73,175.71,20.85324001]
[1747875881542,34.18,175.72,175.71,20.85324001]
[1747875881715,48.62,175.73,175.71,20.85324001]
[1747875881912,34.18,175.72,175.65,7.28721824]
[1747875882136,34.18,175.72,175.71,20.85324001]
[1747875882436,6.5096,175.77,175.71,20.85324001]
[1747875882613,48.6,175.79,175.76,20.85324001]
[1747875882813,34.16,175.78,175.76,20.85324001]
[1747875883008,34.16,175.78,175.75,20.85324001]
[1747875883234,39.84894556,175.78,175.7,20.85324001]
[1747875883716,39.84894556,175.78,175.75,20.85324001]
[1747875883935,39.84894556,175.78,175.65,7.28721824]
[1747875884153,80.07126891,175.78,175.65,1.5941]
[1747875884438,20.85324001,175.76,175.71,20.85324001]
[1747875884646,82.76,175.75,175.74,20.85324001]
[1747875884820,82.76,175.75,175.65,1.5941]
[1747875885015,82.76,175.75,175.73,20.85324001]
[1747875885216,82.76,175.75,175.65,1.5941]
[1747875885641,82.76,175.75,175.72,20.85324001]
[1747875885823,82.76,175.75,175.73,20.85324001]
[1747875886126,88.44990042,175.75,175.73,20.85324001]
[1747875886342,82.76,175.75,175.7,20.85324001]
[1747875886517,82.76,175.75,175.74,20.85324001]
[1747875888129,82.76,175.75,175.65,33.28704985]
[1747875888370,82.76,175.75,175.74,20.85324001]
[1747875888912,88.44990042,175.75,175.72,20.85324001]
[1747875889113,88.44990042,175.75,175.71,20.85324001]
[1747875889340,88.44990042,175.75,175.72,20.85324001]
[1747875889531,88.44990042,175.75,175.73,20.85324001]
[1747875890735,88.44990042,175.75,175.65,1.5941]
[1747875891042,34.14,175.74,175.73,20.85324001]
[1747875891736,39.83022419,175.74,175.73,20.85324001]
[1747875892058,39.83022419,175.74,175.65,1.5941]
[1747875892241,60.6834642,175.74,175.65,1.5941]
[1747875892435,20.85324001,175.73,175.65,1.5941]
[1747875892644,74.90902468,175.74,175.69,20.85324001]
[1747875893335,40.76902468,175.74,175.69,20.85324001]
[1747875893543,34.14,175.73,175.7,20.85324001]
[1747875893749,5.69087184,175.72,175.69,20.85324001]
[1747875894136,5.69087184,175.72,175.69,20.72538916]
[1747875894531,5.69087184,175.72,175.7,20.72538916]
[1747875894732,5.69087184,175.72,175.65,1.5941]
[1747875895032,5.69087184,175.72,175.7,20.72538916]
[1747875895354,34.14,175.73,175.65,1.5941]
[1747875895355,34.14,175.73,175.71,20.72538916]
[1747875895543,5.69052305,175.74,175.72,20.72538916]
[1747875895742,39.8307989,175.73,175.65,7.28702861]
[1747875895956,39.8307989,175.73,175.65,1.5941]
[1747875896153,39.8307989,175.73,175.72,20.72538916]
[1747875896544,39.8307989,175.73,175.71,20.72538916]
[1747875897632,39.8307989,175.73,175.65,1.5941]